[Event "Titled Tuesday Blitz May 16 Early 2023"]
[White "Gutkin, Ilya"]
[Black "Flis, Pawel"]
[WhiteFideId "16203470"]
[BlackFideId "1112864"]
[WhiteElo "2265"]
[BlackElo "1822"]
[Result "1-0"]
[Round "08"]
[TimeControl "180+2"]
[Date "2023.05.16"]
[WhiteClock "0:00:37"]
[BlackClock "0:00:03"]

1. e4 {[%clk 0:03:00]}  c5 {[%clk 0:02:55]} 2. Nf3 {[%clk 0:03:00]}  d6 {[%clk 0:02:55]} 3. Bb5+ {[%clk 0:03:00]}  Bd7 {[%clk 0:02:54]} 4. Qe2 {[%clk 0:03:00]}  Nf6 {[%clk 0:02:53]} 5. Bxd7+ {[%clk 0:02:59]}  Qxd7 {[%clk 0:02:50]} 6. e5 {[%clk 0:02:59]}  Nd5 {[%clk 0:02:45]} 7. exd6 {[%clk 0:02:56]}  Qxd6 {[%clk 0:02:45]} 8. d3 {[%clk 0:02:56]}  e6 {[%clk 0:02:42]} 9. O-O {[%clk 0:02:55]}  Be7 {[%clk 0:02:41]} 10. Nbd2 {[%clk 0:02:52]}  O-O {[%clk 0:02:31]} 11. Nc4 {[%clk 0:02:52]}  Qc7 {[%clk 0:02:27]} 12. a4 {[%clk 0:02:49]}  Nc6 {[%clk 0:02:25]} 13. Nfe5 {[%clk 0:02:45]}  Nd4 {[%clk 0:02:09]} 14. Qd1 {[%clk 0:02:39]}  Bf6 {[%clk 0:02:08]} 15. Nf3 {[%clk 0:02:36]}  Nf4 {[%clk 0:01:57]} 16. Nxd4 {[%clk 0:02:34]}  cxd4 {[%clk 0:01:48]} 17. Bxf4 {[%clk 0:02:29]}  Qxf4 {[%clk 0:01:46]} 18. Qf3 {[%clk 0:02:29]}  Qxf3 {[%clk 0:01:43]} 19. gxf3 {[%clk 0:02:30]}  Rac8 {[%clk 0:01:41]} 20. Ra3 {[%clk 0:02:29]}  b6 {[%clk 0:01:40]} 21. Rb3 {[%clk 0:02:25]}  Rc5 {[%clk 0:01:39]} 22. Rb5 {[%clk 0:02:22]}  Rfc8 {[%clk 0:01:35]} 23. Ra1 {[%clk 0:02:19]}  Rg5+ {[%clk 0:01:14]} 24. Kf1 {[%clk 0:02:15]}  Rf5 {[%clk 0:01:13]} 25. Rxf5 {[%clk 0:02:12]}  exf5 {[%clk 0:01:14]} 26. Ra3 {[%clk 0:02:08]}  Kf8 {[%clk 0:01:12]} 27. Rb3 {[%clk 0:02:07]}  Rc5 {[%clk 0:01:02]} 28. Rb5 {[%clk 0:02:07]}  g5 {[%clk 0:00:41]} 29. Rxc5 {[%clk 0:02:03]}  bxc5 {[%clk 0:00:42]} 30. Ke2 {[%clk 0:01:32]}  Ke8 {[%clk 0:00:41]} 31. Nd6+ {[%clk 0:01:30]}  Kd7 {[%clk 0:00:41]} 32. Nxf5 {[%clk 0:01:31]}  Kc6 {[%clk 0:00:39]} 33. h3 {[%clk 0:01:27]}  Bd8 {[%clk 0:00:38]} 34. f4 {[%clk 0:01:20]}  gxf4 {[%clk 0:00:31]} 35. Kf3 {[%clk 0:01:20]}  Bc7 {[%clk 0:00:28]} 36. Ke4 {[%clk 0:01:19]}  Kb6 {[%clk 0:00:18]} 37. Nh6 {[%clk 0:01:18]}  f6 {[%clk 0:00:16]} 38. Ng4 {[%clk 0:01:17]}  Ka5 {[%clk 0:00:14]} 39. Nxf6 {[%clk 0:01:17]}  Kxa4 {[%clk 0:00:14]} 40. Nd5 {[%clk 0:01:17]}  Bd6 {[%clk 0:00:13]} 41. Nxf4 {[%clk 0:01:17]}  Kb4 {[%clk 0:00:13]} 42. Nd5+ {[%clk 0:01:15]}  Kb5 {[%clk 0:00:11]} 43. f4 {[%clk 0:01:15]}  a5 {[%clk 0:00:10]} 44. f5 {[%clk 0:01:15]}  a4 {[%clk 0:00:10]} 45. f6 {[%clk 0:01:15]}  c4 {[%clk 0:00:07]} 46. dxc4+ {[%clk 0:01:12]}  Kxc4 {[%clk 0:00:07]} 47. f7 {[%clk 0:01:05]}  Kc5 {[%clk 0:00:06]} 48. Nf6 {[%clk 0:01:02]}  Bf8 {[%clk 0:00:04]} 49. Nxh7 {[%clk 0:01:01]}  Bg7 {[%clk 0:00:04]} 50. f8=Q+ {[%clk 0:01:02]}  Bxf8 {[%clk 0:00:05]} 51. Nxf8 {[%clk 0:01:02]}  Kc4 {[%clk 0:00:05]} 52. Ne6 {[%clk 0:00:36]}  a3 {[%clk 0:00:06]} 53. bxa3 {[%clk 0:00:36]}  Kc3 {[%clk 0:00:06]} 54. Nxd4 {[%clk 0:00:36]}  Kb2 {[%clk 0:00:05]} 55. h4 {[%clk 0:00:36]}  Kxa3 {[%clk 0:00:03]} 56. h5 {[%clk 0:00:37]} 1-0


[Site "https://www.chess.com"]

[Event "Titled Tuesday Blitz May 16 Early 2023"]
[White "Zaichenko, Daria"]
[Black "Hajiyev, Kanan"]
[WhiteFideId "4197453"]
[BlackFideId "13404148"]
[WhiteElo "2039"]
[BlackElo "2103"]
[Result "0-1"]
[Round "08"]
[TimeControl "180+2"]
[Date "2023.05.16"]
[WhiteClock "0:00:00"]
[BlackClock "0:01:04"]

1. e4 {[%clk 0:02:57]}  c6 {[%clk 0:02:59]} 2. d4 {[%clk 0:02:55]}  d5 {[%clk 0:03:00]} 3. Nc3 {[%clk 0:02:55]}  a6 {[%clk 0:03:00]} 4. f4 {[%clk 0:02:47]}  dxe4 {[%clk 0:02:59]} 5. Nxe4 {[%clk 0:02:47]}  Nf6 {[%clk 0:03:00]} 6. Nxf6+ {[%clk 0:02:47]}  exf6 {[%clk 0:03:01]} 7. Nf3 {[%clk 0:02:46]}  Bg4 {[%clk 0:03:00]} 8. c3 {[%clk 0:02:45]}  Bd6 {[%clk 0:03:00]} 9. Bd3 {[%clk 0:02:45]}  Qe7+ {[%clk 0:03:00]} 10. Qe2 {[%clk 0:02:39]}  Bxf3 {[%clk 0:02:59]} 11. gxf3 {[%clk 0:02:34]}  O-O {[%clk 0:02:57]} 12. Qxe7 {[%clk 0:02:34]}  Bxe7 {[%clk 0:02:58]} 13. Kf2 {[%clk 0:02:34]}  Nd7 {[%clk 0:02:58]} 14. h4 {[%clk 0:02:30]}  h5 {[%clk 0:02:55]} 15. Be3 {[%clk 0:02:28]}  Rfe8 {[%clk 0:02:52]} 16. Rag1 {[%clk 0:02:26]}  Rad8 {[%clk 0:02:32]} 17. Rg2 {[%clk 0:02:24]}  Nc5 {[%clk 0:02:32]} 18. Bc2 {[%clk 0:02:22]}  g6 {[%clk 0:02:26]} 19. dxc5 {[%clk 0:02:20]}  Bf8 {[%clk 0:02:22]} 20. Rd1 {[%clk 0:02:17]}  Kh7 {[%clk 0:02:10]} 21. Rxd8 {[%clk 0:02:16]}  Rxd8 {[%clk 0:02:11]} 22. Rg1 {[%clk 0:02:10]}  f5 {[%clk 0:02:07]} 23. Rd1 {[%clk 0:02:08]}  Re8 {[%clk 0:02:08]} 24. Rd7 {[%clk 0:02:05]}  Re7 {[%clk 0:02:08]} 25. Rxe7 {[%clk 0:02:05]}  Bxe7 {[%clk 0:02:09]} 26. Kg3 {[%clk 0:02:02]}  Kg7 {[%clk 0:02:09]} 27. Bd4+ {[%clk 0:02:02]}  Kf8 {[%clk 0:02:10]} 28. b4 {[%clk 0:01:54]}  Ke8 {[%clk 0:02:09]} 29. Bb3 {[%clk 0:01:52]}  Bf8 {[%clk 0:02:07]} 30. Bf6 {[%clk 0:01:49]}  Bh6 {[%clk 0:02:04]} 31. a4 {[%clk 0:01:46]}  Bf8 {[%clk 0:02:03]} 32. Kf2 {[%clk 0:01:42]}  Bh6 {[%clk 0:02:03]} 33. Ke3 {[%clk 0:01:43]}  Bf8 {[%clk 0:02:03]} 34. a5 {[%clk 0:01:06]}  Bh6 {[%clk 0:02:01]} 35. Kd4 {[%clk 0:00:59]}  Bxf4 {[%clk 0:02:00]} 36. c4 {[%clk 0:00:52]}  Kd7 {[%clk 0:01:55]} 37. b5 {[%clk 0:00:51]}  Ke6 {[%clk 0:01:55]} 38. Bd8 {[%clk 0:00:48]}  Be5+ {[%clk 0:01:52]} 39. Kd3 {[%clk 0:00:47]}  Kd7 {[%clk 0:01:49]} 40. Bg5 {[%clk 0:00:40]}  Ke6 {[%clk 0:01:43]} 41. bxc6 {[%clk 0:00:31]}  bxc6 {[%clk 0:01:43]} 42. Ba4 {[%clk 0:00:31]}  Kd7 {[%clk 0:01:44]} 43. Bd2 {[%clk 0:00:23]}  Bg3 {[%clk 0:01:42]} 44. Bg5 {[%clk 0:00:22]}  Be1 {[%clk 0:01:42]} 45. Kd4 {[%clk 0:00:20]}  Bxa5 {[%clk 0:01:40]} 46. Bf6 {[%clk 0:00:19]}  Be1 {[%clk 0:01:35]} 47. Kd3 {[%clk 0:00:17]}  Bf2 {[%clk 0:01:33]} 48. Kc3 {[%clk 0:00:07]}  Bxc5 {[%clk 0:01:32]} 49. Bd4 {[%clk 0:00:05]}  Be7 {[%clk 0:01:32]} 50. Bf2 {[%clk 0:00:06]}  a5 {[%clk 0:01:31]} 51. c5 {[%clk 0:00:05]}  Bf6+ {[%clk 0:01:29]} 52. Kc4 {[%clk 0:00:05]}  Be7 {[%clk 0:01:27]} 53. Kd4 {[%clk 0:00:05]}  Bd8 {[%clk 0:01:26]} 54. Ke5 {[%clk 0:00:05]}  Be7 {[%clk 0:01:21]} 55. f4 {[%clk 0:00:03]}  Bd8 {[%clk 0:01:14]} 56. Kd4 {[%clk 0:00:04]}  Bf6+ {[%clk 0:01:14]} 57. Kc4 {[%clk 0:00:04]}  Bg7 {[%clk 0:01:11]} 58. Bb3 {[%clk 0:00:03]}  Bf6 {[%clk 0:01:05]} 59. Kd3 {[%clk 0:00:03]}  Ke7 {[%clk 0:01:04]} 60. Ke3 {[%clk 0:00:01]}  Bc3 {[%clk 0:01:03]} 61. Kd3 {[%clk 0:00:00]}  Bb4 {[%clk 0:01:04]} 0-1


[Site "https://www.chess.com"]

[Event "Titled Tuesday Blitz May 16 Early 2023"]
[White "agvania123"]
[Black "DubiousM0ves532"]
[WhiteElo "2241"]
[BlackElo "2428"]
[Result "0-1"]
[Round "08"]
[TimeControl "180+2"]
[Date "2023.05.16"]
[WhiteClock "0:00:26"]
[BlackClock "0:00:17"]

1. c4 {[%clk 0:03:00]}  Nf6 {[%clk 0:02:56]} 2. Nc3 {[%clk 0:03:00]}  c5 {[%clk 0:02:55]} 3. e4 {[%clk 0:02:56]}  d6 {[%clk 0:02:55]} 4. d3 {[%clk 0:02:56]}  g6 {[%clk 0:02:55]} 5. g3 {[%clk 0:02:57]}  Bg7 {[%clk 0:02:56]} 6. Bg2 {[%clk 0:02:57]}  O-O {[%clk 0:02:56]} 7. Nge2 {[%clk 0:02:58]}  Nc6 {[%clk 0:02:56]} 8. O-O {[%clk 0:02:58]}  Rb8 {[%clk 0:02:54]} 9. f4 {[%clk 0:02:50]}  a6 {[%clk 0:02:42]} 10. h3 {[%clk 0:02:23]}  Ne8 {[%clk 0:02:39]} 11. a4 {[%clk 0:02:14]}  Nc7 {[%clk 0:02:37]} 12. Be3 {[%clk 0:02:03]}  b5 {[%clk 0:02:29]} 13. axb5 {[%clk 0:01:59]}  axb5 {[%clk 0:02:29]} 14. b3 {[%clk 0:01:33]}  bxc4 {[%clk 0:01:52]} 15. bxc4 {[%clk 0:01:32]}  Ne6 {[%clk 0:01:51]} 16. Rb1 {[%clk 0:01:18]}  Rxb1 {[%clk 0:01:48]} 17. Qxb1 {[%clk 0:01:18]}  Ned4 {[%clk 0:01:45]} 18. Qa2 {[%clk 0:01:14]}  Bd7 {[%clk 0:01:29]} 19. Kh2 {[%clk 0:01:08]}  Qa8 {[%clk 0:01:20]} 20. Ra1 {[%clk 0:00:59]}  Qxa2 {[%clk 0:00:59]} 21. Rxa2 {[%clk 0:01:00]}  Nb4 {[%clk 0:00:57]} 22. Ra7 {[%clk 0:00:54]}  Rd8 {[%clk 0:00:47]} 23. Bxd4 {[%clk 0:00:48]}  cxd4 {[%clk 0:00:47]} 24. Nd5 {[%clk 0:00:49]}  Nxd5 {[%clk 0:00:38]} 25. exd5 {[%clk 0:00:45]}  Bf5 {[%clk 0:00:36]} 26. Ra3 {[%clk 0:00:42]}  Rb8 {[%clk 0:00:34]} 27. Kg1 {[%clk 0:00:39]}  Rb1+ {[%clk 0:00:24]} 28. Kf2 {[%clk 0:00:39]}  Rd1 {[%clk 0:00:23]} 29. Be4 {[%clk 0:00:39]}  Bxe4 {[%clk 0:00:22]} 30. dxe4 {[%clk 0:00:40]}  d3 {[%clk 0:00:22]} 31. Nc3 {[%clk 0:00:29]}  Bd4+ {[%clk 0:00:18]} 32. Kf3 {[%clk 0:00:20]}  Rd2 {[%clk 0:00:14]} 33. g4 {[%clk 0:00:17]}  Kg7 {[%clk 0:00:10]} 34. Nb5 {[%clk 0:00:16]}  Bc5 {[%clk 0:00:09]} 35. Ra1 {[%clk 0:00:15]}  Rf2+ {[%clk 0:00:09]} 36. Kg3 {[%clk 0:00:15]}  d2 {[%clk 0:00:09]} 37. Rd1 {[%clk 0:00:15]}  Re2 {[%clk 0:00:10]} 38. Nc3 {[%clk 0:00:16]}  Re3+ {[%clk 0:00:10]} 39. Kf2 {[%clk 0:00:16]}  Rxc3+ {[%clk 0:00:11]} 40. Ke2 {[%clk 0:00:16]}  Rxc4 {[%clk 0:00:11]} 41. Rxd2 {[%clk 0:00:16]}  Rxe4+ {[%clk 0:00:11]} 42. Kf3 {[%clk 0:00:17]}  Re3+ {[%clk 0:00:12]} 43. Kg2 {[%clk 0:00:17]}  Rc3 {[%clk 0:00:11]} 44. Rd1 {[%clk 0:00:18]}  Rc4 {[%clk 0:00:12]} 45. Rd2 {[%clk 0:00:18]}  Rxf4 {[%clk 0:00:12]} 46. Rd1 {[%clk 0:00:18]}  Rd4 {[%clk 0:00:12]} 47. Rxd4 {[%clk 0:00:18]}  Bxd4 {[%clk 0:00:13]} 48. Kf3 {[%clk 0:00:18]}  Bf6 {[%clk 0:00:13]} 49. Ke4 {[%clk 0:00:19]}  h6 {[%clk 0:00:14]} 50. Kf3 {[%clk 0:00:20]}  Kf8 {[%clk 0:00:14]} 51. Ke4 {[%clk 0:00:20]}  Ke8 {[%clk 0:00:14]} 52. Kd3 {[%clk 0:00:21]}  Kd7 {[%clk 0:00:14]} 53. Kc4 {[%clk 0:00:22]}  e6 {[%clk 0:00:15]} 54. Kb5 {[%clk 0:00:23]}  exd5 {[%clk 0:00:15]} 55. Kb4 {[%clk 0:00:24]}  Ke6 {[%clk 0:00:16]} 56. Kb3 {[%clk 0:00:25]}  Bh4 {[%clk 0:00:16]} 57. Kc2 {[%clk 0:00:26]}  g5 {[%clk 0:00:17]} 58. Kd3 {[%clk 0:00:26]}  f5 {[%clk 0:00:17]} 0-1


[Site "https://www.chess.com"]

[Event "Titled Tuesday Blitz May 16 Early 2023"]
[White "Nastase, Robert-Paul"]
[Black "Quirke, Jeffrey"]
[WhiteFideId "1221175"]
[BlackFideId "2013029"]
[WhiteElo "2175"]
[BlackElo "2235"]
[Result "1-0"]
[Round "08"]
[TimeControl "180+2"]
[Date "2023.05.16"]
[WhiteClock "0:00:08"]
[BlackClock "0:00:00"]

1. e4 {[%clk 0:03:00]}  Nf6 {[%clk 0:02:58]} 2. Nc3 {[%clk 0:02:56]}  d5 {[%clk 0:02:57]} 3. e5 {[%clk 0:02:53]}  Nfd7 {[%clk 0:02:55]} 4. d4 {[%clk 0:02:53]}  c5 {[%clk 0:02:52]} 5. Nxd5 {[%clk 0:02:31]}  cxd4 {[%clk 0:02:52]} 6. Qxd4 {[%clk 0:02:31]}  Nc6 {[%clk 0:02:49]} 7. Qd1 {[%clk 0:02:08]}  Ndxe5 {[%clk 0:02:48]} 8. Bf4 {[%clk 0:02:00]}  e6 {[%clk 0:02:41]} 9. Ne3 {[%clk 0:02:01]}  Qxd1+ {[%clk 0:02:29]} 10. Rxd1 {[%clk 0:02:02]}  Bd7 {[%clk 0:02:26]} 11. Be2 {[%clk 0:02:00]}  O-O-O {[%clk 0:02:24]} 12. Nf3 {[%clk 0:02:01]}  Nxf3+ {[%clk 0:02:14]} 13. Bxf3 {[%clk 0:02:01]}  Bb4+ {[%clk 0:02:08]} 14. c3 {[%clk 0:02:01]}  Ba5 {[%clk 0:02:09]} 15. Nc4 {[%clk 0:01:58]}  Bc7 {[%clk 0:02:00]} 16. Nd6+ {[%clk 0:01:50]}  Bxd6 {[%clk 0:01:31]} 17. Bxd6 {[%clk 0:01:47]}  e5 {[%clk 0:01:14]} 18. O-O {[%clk 0:01:24]}  f6 {[%clk 0:01:12]} 19. b4 {[%clk 0:01:04]}  Be6 {[%clk 0:01:05]} 20. Bc5 {[%clk 0:00:56]}  Kc7 {[%clk 0:00:51]} 21. a4 {[%clk 0:00:40]}  b6 {[%clk 0:00:48]} 22. Be3 {[%clk 0:00:38]}  Bb3 {[%clk 0:00:36]} 23. Ra1 {[%clk 0:00:38]}  Rd3 {[%clk 0:00:34]} 24. Rfc1 {[%clk 0:00:36]}  f5 {[%clk 0:00:20]} 25. Be2 {[%clk 0:00:25]}  Rdd8 {[%clk 0:00:13]} 26. a5 {[%clk 0:00:26]}  Ra8 {[%clk 0:00:09]} 27. Bb5 {[%clk 0:00:16]}  f4 {[%clk 0:00:08]} 28. Bd2 {[%clk 0:00:15]}  Rhd8 {[%clk 0:00:08]} 29. Be1 {[%clk 0:00:15]}  a6 {[%clk 0:00:06]} 30. Bxc6 {[%clk 0:00:13]}  Kxc6 {[%clk 0:00:06]} 31. axb6 {[%clk 0:00:14]}  Kxb6 {[%clk 0:00:06]} 32. Ra5 {[%clk 0:00:14]}  Bc4 {[%clk 0:00:05]} 33. Rxe5 {[%clk 0:00:13]}  Re8 {[%clk 0:00:04]} 34. Rc5 {[%clk 0:00:13]}  Bb5 {[%clk 0:00:03]} 35. f3 {[%clk 0:00:12]}  Rac8 {[%clk 0:00:03]} 36. Bf2 {[%clk 0:00:11]}  Kb7 {[%clk 0:00:02]} 37. c4 {[%clk 0:00:07]}  Rxc5 {[%clk 0:00:02]} 38. Bxc5 {[%clk 0:00:08]}  Ba4 {[%clk 0:00:00]} 39. Bd6 {[%clk 0:00:08]} 1-0


[Site "https://www.chess.com"]

[Event "Titled Tuesday Blitz May 16 Early 2023"]
[White "Fernandez Siles, Luis"]
[Black "hsd2016"]
[WhiteFideId "2209420"]
[WhiteElo "2195"]
[BlackElo "2204"]
[Result "1-0"]
[Round "08"]
[TimeControl "180+2"]
[Date "2023.05.16"]
[WhiteClock "0:00:09"]
[BlackClock "0:00:02"]

1. e4 {[%clk 0:03:00]}  c5 {[%clk 0:02:59]} 2. Nf3 {[%clk 0:03:00]}  e6 {[%clk 0:03:00]} 3. c3 {[%clk 0:03:00]}  a6 {[%clk 0:03:00]} 4. d4 {[%clk 0:03:00]}  cxd4 {[%clk 0:02:58]} 5. cxd4 {[%clk 0:03:01]}  d5 {[%clk 0:02:59]} 6. e5 {[%clk 0:02:59]}  Nc6 {[%clk 0:02:59]} 7. Bd3 {[%clk 0:02:56]}  Nge7 {[%clk 0:02:53]} 8. Nc3 {[%clk 0:02:55]}  g6 {[%clk 0:02:52]} 9. h4 {[%clk 0:02:54]}  h5 {[%clk 0:02:51]} 10. Bg5 {[%clk 0:02:53]}  Bg7 {[%clk 0:02:51]} 11. Rc1 {[%clk 0:02:43]}  Qb6 {[%clk 0:02:48]} 12. Qd2 {[%clk 0:02:27]}  Bd7 {[%clk 0:02:40]} 13. O-O {[%clk 0:02:26]}  Nxd4 {[%clk 0:02:36]} 14. Bf6 {[%clk 0:01:11]}  Nxf3+ {[%clk 0:02:30]} 15. gxf3 {[%clk 0:01:12]}  Bxf6 {[%clk 0:02:29]} 16. exf6 {[%clk 0:01:12]}  Nf5 {[%clk 0:02:30]} 17. Bxf5 {[%clk 0:01:12]}  gxf5 {[%clk 0:02:31]} 18. Rfe1 {[%clk 0:00:47]}  Rg8+ {[%clk 0:02:18]} 19. Kh1 {[%clk 0:00:42]}  Qb4 {[%clk 0:02:14]} 20. f4 {[%clk 0:00:38]}  d4 {[%clk 0:02:05]} 21. a3 {[%clk 0:00:29]}  dxc3 {[%clk 0:01:54]} 22. Rxc3 {[%clk 0:00:29]}  Qb5 {[%clk 0:01:39]} 23. Qd6 {[%clk 0:00:25]}  Qc6+ {[%clk 0:00:04]} 24. Rxc6 {[%clk 0:00:20]}  Bxc6+ {[%clk 0:00:02]} 25. Kh2 {[%clk 0:00:09]} 1-0


[Site "https://www.chess.com"]

[Event "Titled Tuesday Blitz May 16 Early 2023"]
[White "Buchenau, Frank"]
[Black "Floresvillar Gonzalez, Luis Migu"]
[WhiteFideId "4604350"]
[BlackFideId "5100542"]
[WhiteElo "2157"]
[BlackElo "2040"]
[Result "1-0"]
[Round "08"]
[TimeControl "180+2"]
[Date "2023.05.16"]
[WhiteClock "0:00:28"]
[BlackClock "0:00:00"]

1. e4 {[%clk 0:03:00]}  d6 {[%clk 0:02:58]} 2. d4 {[%clk 0:03:00]}  Nf6 {[%clk 0:02:58]} 3. Nc3 {[%clk 0:03:00]}  g6 {[%clk 0:02:58]} 4. Nf3 {[%clk 0:02:58]}  Nc6 {[%clk 0:02:57]} 5. d5 {[%clk 0:02:57]}  Ne5 {[%clk 0:02:56]} 6. Nxe5 {[%clk 0:02:57]}  dxe5 {[%clk 0:02:56]} 7. Bb5+ {[%clk 0:02:54]}  Nd7 {[%clk 0:02:51]} 8. h4 {[%clk 0:02:51]}  h5 {[%clk 0:02:48]} 9. Bg5 {[%clk 0:02:38]}  Bg7 {[%clk 0:02:47]} 10. Qd2 {[%clk 0:02:35]}  Bf6 {[%clk 0:02:43]} 11. O-O-O {[%clk 0:02:26]}  a6 {[%clk 0:02:43]} 12. Bxd7+ {[%clk 0:02:11]}  Qxd7 {[%clk 0:02:36]} 13. Bxf6 {[%clk 0:02:07]}  exf6 {[%clk 0:02:35]} 14. f4 {[%clk 0:02:06]}  Qe7 {[%clk 0:02:22]} 15. d6 {[%clk 0:01:47]}  cxd6 {[%clk 0:02:15]} 16. Nd5 {[%clk 0:01:36]}  Qd8 {[%clk 0:02:14]} 17. f5 {[%clk 0:01:03]}  g5 {[%clk 0:01:15]} 18. g4 {[%clk 0:01:01]}  b5 {[%clk 0:00:28]} 19. hxg5 {[%clk 0:00:54]}  fxg5 {[%clk 0:00:26]} 20. Rxh5 {[%clk 0:00:44]}  Rxh5 {[%clk 0:00:25]} 21. gxh5 {[%clk 0:00:45]}  Bb7 {[%clk 0:00:25]} 22. h6 {[%clk 0:00:37]}  Bxd5 {[%clk 0:00:07]} 23. Qxd5 {[%clk 0:00:35]}  Rc8 {[%clk 0:00:06]} 24. h7 {[%clk 0:00:34]}  Ke7 {[%clk 0:00:03]} 25. f6+ {[%clk 0:00:29]}  Kxf6 {[%clk 0:00:02]} 26. Rf1+ {[%clk 0:00:29]}  Kg6 {[%clk 0:00:00]} 27. Qxf7+ {[%clk 0:00:28]} 1-0


[Site "https://www.chess.com"]

[Event "Titled Tuesday Blitz May 16 Early 2023"]
[White "Tarnowska, Aleksandra"]
[Black "Fajdetic, Hrvoje"]
[WhiteFideId "1180967"]
[BlackFideId "14501945"]
[WhiteElo "1776"]
[BlackElo "2185"]
[Result "0-1"]
[Round "08"]
[TimeControl "180+2"]
[Date "2023.05.16"]
[WhiteClock "0:00:00"]
[BlackClock "0:01:08"]

1. e4 {[%clk 0:03:00]}  c5 {[%clk 0:02:59]} 2. Nf3 {[%clk 0:02:59]}  a6 {[%clk 0:02:58]} 3. c4 {[%clk 0:02:57]}  Nc6 {[%clk 0:02:54]} 4. d4 {[%clk 0:02:54]}  cxd4 {[%clk 0:02:55]} 5. Nxd4 {[%clk 0:02:54]}  g6 {[%clk 0:02:55]} 6. Nc3 {[%clk 0:02:41]}  Bg7 {[%clk 0:02:54]} 7. Nxc6 {[%clk 0:02:40]}  bxc6 {[%clk 0:02:55]} 8. h4 {[%clk 0:02:28]}  h5 {[%clk 0:02:54]} 9. Bd3 {[%clk 0:02:24]}  d6 {[%clk 0:02:47]} 10. Bg5 {[%clk 0:01:36]}  Nf6 {[%clk 0:02:30]} 11. O-O {[%clk 0:01:17]}  O-O {[%clk 0:02:25]} 12. f4 {[%clk 0:01:09]}  Ng4 {[%clk 0:02:21]} 13. f5 {[%clk 0:00:46]}  Qb6+ {[%clk 0:01:57]} 14. Kh1 {[%clk 0:00:42]}  Qxb2 {[%clk 0:01:51]} 15. Ne2 {[%clk 0:00:06]}  Qxa1 {[%clk 0:01:45]} 16. Bb1 {[%clk 0:00:03]}  Qe5 {[%clk 0:01:31]} 17. Bf4 {[%clk 0:00:02]}  Qc5 {[%clk 0:01:30]} 18. Qe1 {[%clk 0:00:02]}  Be5 {[%clk 0:01:28]} 19. g3 {[%clk 0:00:02]}  Rb8 {[%clk 0:01:21]} 20. Kg2 {[%clk 0:00:01]}  Rb2 {[%clk 0:01:20]} 21. Bd3 {[%clk 0:00:02]}  Bxf4 {[%clk 0:01:16]} 22. Rxf4 {[%clk 0:00:01]}  Qe3 {[%clk 0:01:14]} 23. Kh3 {[%clk 0:00:00]}  Qxd3 {[%clk 0:01:08]} 0-1


[Site "https://www.chess.com"]

[Event "Titled Tuesday Blitz May 16 Early 2023"]
[White "Rian, Kapriaga"]
[Black "Suduvasachmatai"]
[WhiteFideId "7103263"]
[WhiteElo "2311"]
[BlackElo "2126"]
[Result "1-0"]
[Round "08"]
[TimeControl "180+2"]
[Date "2023.05.16"]
[WhiteClock "0:02:26"]
[BlackClock "0:02:10"]

1. d4 {[%clk 0:03:00]}  d5 {[%clk 0:02:59]} 2. Nf3 {[%clk 0:02:58]}  Nf6 {[%clk 0:02:59]} 3. Bf4 {[%clk 0:02:58]}  Bf5 {[%clk 0:02:57]} 4. e3 {[%clk 0:02:58]}  e6 {[%clk 0:02:56]} 5. Ne5 {[%clk 0:02:57]}  c5 {[%clk 0:02:56]} 6. c3 {[%clk 0:02:54]}  Nbd7 {[%clk 0:02:50]} 7. Nd2 {[%clk 0:02:53]}  a6 {[%clk 0:02:45]} 8. Be2 {[%clk 0:02:53]}  cxd4 {[%clk 0:02:41]} 9. exd4 {[%clk 0:02:52]}  Be7 {[%clk 0:02:40]} 10. a4 {[%clk 0:02:45]}  O-O {[%clk 0:02:39]} 11. g4 {[%clk 0:02:45]}  Nxe5 {[%clk 0:02:33]} 12. dxe5 {[%clk 0:02:41]}  Be4 {[%clk 0:02:32]} 13. exf6 {[%clk 0:02:38]}  Bxf6 {[%clk 0:02:32]} 14. Nxe4 {[%clk 0:02:36]}  dxe4 {[%clk 0:02:32]} 15. Qxd8 {[%clk 0:02:36]}  Raxd8 {[%clk 0:02:33]} 16. O-O {[%clk 0:02:33]}  e5 {[%clk 0:02:33]} 17. Be3 {[%clk 0:02:32]}  Be7 {[%clk 0:02:27]} 18. Rfd1 {[%clk 0:02:32]}  g6 {[%clk 0:02:26]} 19. g5 {[%clk 0:02:29]}  f5 {[%clk 0:02:15]} 20. gxf6 {[%clk 0:02:28]}  Bxf6 {[%clk 0:02:15]} 21. Rxd8 {[%clk 0:02:28]}  Rxd8 {[%clk 0:02:15]} 22. Rd1 {[%clk 0:02:28]}  Rxd1+ {[%clk 0:02:14]} 23. Bxd1 {[%clk 0:02:28]}  Kf7 {[%clk 0:02:14]} 24. Bb3+ {[%clk 0:02:26]}  Ke7 {[%clk 0:02:10]} 25. Bd5 {[%clk 0:02:26]} 1-0


[Site "https://www.chess.com"]